[Event "December 19 Late 2023"]
[Site "https://www.chess.com"]
[Date "2023.12.19"]
[Round "5"]
[White "slidingknight2775"]
[Black "Rasulov, Vugar"]
[Result "1-0"]
[Board "25"]
[TimeControl "180+1"]
[BlackFideId "13402390"]
[WhiteElo "2647"]
[BlackElo "2517"]
[BlackTeam "AZE"]
[WhiteClock "0:00:07"]
[BlackClock "0:00:40"]

1. Nf3 {[%clk 0:03:00]}  Nf6 {[%clk 0:02:59]} 2. g3 {[%clk 0:03:01]}  e6 {[%clk 0:02:59]} 3. Bg2 {[%clk 0:03:01]}  d5 {[%clk 0:03:00]} 4. O-O {[%clk 0:03:02]}  Be7 {[%clk 0:03:01]} 5. d4 {[%clk 0:03:02]}  O-O {[%clk 0:03:02]} 6. c4 {[%clk 0:03:03]}  dxc4 {[%clk 0:03:01]} 7. Qc2 {[%clk 0:03:04]}  b5 {[%clk 0:03:00]} 8. a4 {[%clk 0:03:04]}  Bb7 {[%clk 0:02:57]} 9. axb5 {[%clk 0:03:04]}  a6 {[%clk 0:02:58]} 10. bxa6 {[%clk 0:03:05]}  Nxa6 {[%clk 0:02:58]} 11. Qxc4 {[%clk 0:03:05]}  Bd5 {[%clk 0:02:59]} 12. Qd3 {[%clk 0:03:05]}  Nb4 {[%clk 0:02:57]} 13. Rxa8 {[%clk 0:03:06]}  Qxa8 {[%clk 0:02:57]} 14. Qd1 {[%clk 0:03:06]}  c5 {[%clk 0:02:52]} 15. Nc3 {[%clk 0:02:58]}  Bc6 {[%clk 0:02:48]} 16. dxc5 {[%clk 0:02:42]}  Bxc5 {[%clk 0:02:49]} 17. Bf4 {[%clk 0:02:30]}  h6 {[%clk 0:02:41]} 18. Qb3 {[%clk 0:02:08]}  Nfd5 {[%clk 0:02:27]} 19. Bd2 {[%clk 0:01:54]}  Rb8 {[%clk 0:02:04]} 20. Qc4 {[%clk 0:01:36]}  Be7 {[%clk 0:01:50]} 21. Nxd5 {[%clk 0:00:39]}  Bxd5 {[%clk 0:01:49]} 22. Qg4 {[%clk 0:00:36]}  Kf8 {[%clk 0:01:31]} 23. Bc3 {[%clk 0:00:22]}  f6 {[%clk 0:01:28]} 24. Nh4 {[%clk 0:00:13]}  Bxg2 {[%clk 0:01:27]} 25. Nxg2 {[%clk 0:00:04]}  Kf7 {[%clk 0:01:14]} 26. Nf4 {[%clk 0:00:04]}  Qe4 {[%clk 0:01:14]} 27. Qh5+ {[%clk 0:00:02]}  Kg8 {[%clk 0:01:12]} 28. Qf3 {[%clk 0:00:02]}  Qxf3 {[%clk 0:01:11]} 29. exf3 {[%clk 0:00:03]}  Kf7 {[%clk 0:01:12]} 30. Re1 {[%clk 0:00:03]}  e5 {[%clk 0:01:12]} 31. Ne2 {[%clk 0:00:03]}  h5 {[%clk 0:01:07]} 32. h4 {[%clk 0:00:03]}  g6 {[%clk 0:01:06]} 33. f4 {[%clk 0:00:03]}  e4 {[%clk 0:01:04]} 34. Nd4 {[%clk 0:00:04]}  f5 {[%clk 0:01:03]} 35. Bxb4 {[%clk 0:00:04]}  Rxb4 {[%clk 0:00:57]} 36. Nc6 {[%clk 0:00:04]}  Rxb2 {[%clk 0:00:58]} 37. Nxe7 {[%clk 0:00:04]}  Kxe7 {[%clk 0:00:59]} 38. f3 {[%clk 0:00:05]}  Rb4 {[%clk 0:00:55]} 39. fxe4 {[%clk 0:00:05]}  fxe4 {[%clk 0:00:56]} 40. Kf2 {[%clk 0:00:05]}  Kf6 {[%clk 0:00:57]} 41. Rc1 {[%clk 0:00:05]}  Rb3 {[%clk 0:00:50]} 42. Rc6+ {[%clk 0:00:04]}  Kf5 {[%clk 0:00:51]} 43. Rc5+ {[%clk 0:00:04]}  Kg4 {[%clk 0:00:34]} 44. Rg5+ {[%clk 0:00:04]}  Kh3 {[%clk 0:00:35]} 45. Rxg6 {[%clk 0:00:04]}  Rf3+ {[%clk 0:00:36]} 46. Ke2 {[%clk 0:00:04]}  Rxg3 {[%clk 0:00:37]} 47. Rxg3+ {[%clk 0:00:04]}  Kxg3 {[%clk 0:00:37]} 48. f5 {[%clk 0:00:05]}  Kxh4 {[%clk 0:00:38]} 49. f6 {[%clk 0:00:06]}  Kg3 {[%clk 0:00:38]} 50. f7 {[%clk 0:00:06]}  h4 {[%clk 0:00:39]} 51. f8=Q {[%clk 0:00:07]}  h3 {[%clk 0:00:39]} 52. Qf1 {[%clk 0:00:07]}  h2 {[%clk 0:00:39]} 53. Qh1 {[%clk 0:00:07]}  e3 {[%clk 0:00:39]} 54. Kxe3 {[%clk 0:00:07]}  Kh3 {[%clk 0:00:40]} 55. Kf4 {[%clk 0:00:07]}  Kh4 {[%clk 0:00:40]} 56. Qxh2# {[%clk 0:00:07]} 1-0

[Event "December 19 Late 2023"]
[Site "https://www.chess.com"]
[Date "2023.12.19"]
[Round "5"]
[White "Szpar, Milosz"]
[Black "Principe, Gerson"]
[Result "1-0"]
[Board "29"]
[TimeControl "180+1"]
[WhiteFideId "1184989"]
[BlackFideId "3804550"]
[WhiteElo "2446"]
[BlackElo "2186"]
[WhiteTeam "POL"]
[BlackTeam "PER"]
[WhiteClock "0:00:06"]
[BlackClock "0:00:02"]

1. e4 {[%clk 0:03:00]}  c6 {[%clk 0:02:59]} 2. d4 {[%clk 0:03:00]}  d5 {[%clk 0:02:59]} 3. e5 {[%clk 0:03:00]}  Bf5 {[%clk 0:02:59]} 4. h4 {[%clk 0:03:01]}  h5 {[%clk 0:02:59]} 5. c4 {[%clk 0:03:01]}  e6 {[%clk 0:02:59]} 6. Nc3 {[%clk 0:03:01]}  Nd7 {[%clk 0:02:55]} 7. cxd5 {[%clk 0:03:01]}  cxd5 {[%clk 0:02:54]} 8. Bd3 {[%clk 0:03:01]}  Bxd3 {[%clk 0:02:54]} 9. Qxd3 {[%clk 0:03:01]}  a6 {[%clk 0:02:54]} 10. Bg5 {[%clk 0:03:01]}  Be7 {[%clk 0:02:54]} 11. Nf3 {[%clk 0:03:01]}  Nh6 {[%clk 0:02:53]} 12. O-O {[%clk 0:02:49]}  Nb6 {[%clk 0:02:42]} 13. Ne2 {[%clk 0:02:46]}  Nf5 {[%clk 0:02:38]} 14. g3 {[%clk 0:02:40]}  Bxg5 {[%clk 0:02:35]} 15. Nxg5 {[%clk 0:02:37]}  O-O {[%clk 0:02:32]} 16. Rad1 {[%clk 0:02:23]}  g6 {[%clk 0:02:27]} 17. Nf4 {[%clk 0:02:18]}  Qe7 {[%clk 0:02:23]} 18. Kg2 {[%clk 0:02:12]}  Rac8 {[%clk 0:02:20]} 19. Rh1 {[%clk 0:02:08]}  Rc4 {[%clk 0:02:15]} 20. Nf3 {[%clk 0:02:00]}  Rfc8 {[%clk 0:02:05]} 21. Rd2 {[%clk 0:01:59]}  Nd7 {[%clk 0:02:01]} 22. Kh3 {[%clk 0:01:50]}  b5 {[%clk 0:01:55]} 23. Qe2 {[%clk 0:01:42]}  Kg7 {[%clk 0:01:54]} 24. g4 {[%clk 0:01:38]}  hxg4+ {[%clk 0:01:47]} 25. Kxg4 {[%clk 0:01:39]}  Rh8 {[%clk 0:01:47]} 26. h5 {[%clk 0:01:33]}  g5 {[%clk 0:01:14]} 27. Ng2 {[%clk 0:00:51]}  Nh6+ {[%clk 0:00:42]} 28. Kg3 {[%clk 0:00:49]}  g4 {[%clk 0:00:42]} 29. Nfh4 {[%clk 0:00:39]}  Qg5 {[%clk 0:00:31]} 30. Qe3 {[%clk 0:00:39]}  Qe7 {[%clk 0:00:29]} 31. Nf4 {[%clk 0:00:33]}  b4 {[%clk 0:00:26]} 32. Kg2 {[%clk 0:00:24]}  a5 {[%clk 0:00:21]} 33. f3 {[%clk 0:00:24]}  g3 {[%clk 0:00:18]} 34. Kxg3 {[%clk 0:00:21]}  Qxh4+ {[%clk 0:00:12]} 35. Rxh4 {[%clk 0:00:21]}  Nf5+ {[%clk 0:00:12]} 36. Kf2 {[%clk 0:00:22]}  Nxe3 {[%clk 0:00:13]} 37. Kxe3 {[%clk 0:00:23]}  Rc1 {[%clk 0:00:12]} 38. h6+ {[%clk 0:00:18]}  Kf8 {[%clk 0:00:12]} 39. h7 {[%clk 0:00:17]}  Rg1 {[%clk 0:00:11]} 40. Rdh2 {[%clk 0:00:15]}  Nb6 {[%clk 0:00:10]} 41. Kf2 {[%clk 0:00:15]}  Rg7 {[%clk 0:00:09]} 42. b3 {[%clk 0:00:15]}  Ke7 {[%clk 0:00:08]} 43. Nd3 {[%clk 0:00:14]}  Nd7 {[%clk 0:00:08]} 44. Ke3 {[%clk 0:00:13]}  f6 {[%clk 0:00:08]} 45. exf6+ {[%clk 0:00:09]}  Kxf6 {[%clk 0:00:09]} 46. Nf4 {[%clk 0:00:09]}  Ke7 {[%clk 0:00:08]} 47. Rh6 {[%clk 0:00:09]}  Nf8 {[%clk 0:00:07]} 48. Rc2 {[%clk 0:00:07]}  Kd6 {[%clk 0:00:06]} 49. Rc8 {[%clk 0:00:06]}  Rhxh7 {[%clk 0:00:06]} 50. Rxh7 {[%clk 0:00:05]}  Nxh7 {[%clk 0:00:06]} 51. Ra8 {[%clk 0:00:05]}  Nf6 {[%clk 0:00:04]} 52. Ra6+ {[%clk 0:00:05]}  Kd7 {[%clk 0:00:04]} 53. Rxe6 {[%clk 0:00:05]}  Nh5 {[%clk 0:00:03]} 54. Ra6 {[%clk 0:00:05]}  Nxf4 {[%clk 0:00:03]} 55. Ra7+ {[%clk 0:00:05]}  Ke6 {[%clk 0:00:02]} 56. Rxg7 {[%clk 0:00:06]}  Nh5 {[%clk 0:00:01]} 57. Ra7 {[%clk 0:00:06]}  Nf6 {[%clk 0:00:02]} 58. Rxa5 {[%clk 0:00:06]} 1-0

[Event "December 19 Late 2023"]
[Site "https://www.chess.com"]
[Date "2023.12.19"]
[Round "5"]
[White "Hajiyev, Kanan"]
[Black "Livaic, Leon"]
[Result "0-1"]
[Board "33"]
[TimeControl "180+1"]
[WhiteFideId "13404148"]
[BlackFideId "14531534"]
[WhiteElo "2102"]
[BlackElo "2541"]
[WhiteTeam "AZE"]
[BlackTeam "CRO"]
[WhiteClock "0:00:00"]
[BlackClock "0:00:25"]

1. d4 {[%clk 0:02:59]}  Nf6 {[%clk 0:03:00]} 2. Nf3 {[%clk 0:02:58]}  b6 {[%clk 0:02:58]} 3. g3 {[%clk 0:02:59]}  Bb7 {[%clk 0:02:59]} 4. Bg2 {[%clk 0:02:59]}  g6 {[%clk 0:03:00]} 5. O-O {[%clk 0:03:00]}  Bg7 {[%clk 0:03:00]} 6. b3 {[%clk 0:03:01]}  O-O {[%clk 0:03:00]} 7. Bb2 {[%clk 0:03:02]}  d6 {[%clk 0:03:00]} 8. c4 {[%clk 0:03:02]}  e6 {[%clk 0:02:59]} 9. Nc3 {[%clk 0:02:58]}  Ne4 {[%clk 0:02:59]} 10. Qc2 {[%clk 0:02:54]}  Nxc3 {[%clk 0:02:59]} 11. Bxc3 {[%clk 0:02:54]}  Nd7 {[%clk 0:02:57]} 12. Rfd1 {[%clk 0:02:43]}  a5 {[%clk 0:02:57]} 13. a3 {[%clk 0:02:21]}  Qe7 {[%clk 0:02:56]} 14. Nh4 {[%clk 0:02:17]}  Bxg2 {[%clk 0:02:55]} 15. Nxg2 {[%clk 0:02:18]}  c6 {[%clk 0:02:24]} 16. Rac1 {[%clk 0:01:59]}  d5 {[%clk 0:02:07]} 17. Bb2 {[%clk 0:01:35]}  Rfc8 {[%clk 0:01:58]} 18. cxd5 {[%clk 0:01:32]}  exd5 {[%clk 0:01:58]} 19. Qd2 {[%clk 0:01:20]}  a4 {[%clk 0:01:54]} 20. b4 {[%clk 0:01:18]}  b5 {[%clk 0:01:54]} 21. Qe3 {[%clk 0:01:09]}  Qxe3 {[%clk 0:01:40]} 22. Nxe3 {[%clk 0:01:10]}  Bh6 {[%clk 0:01:40]} 23. f4 {[%clk 0:01:10]}  Nb6 {[%clk 0:01:38]} 24. Kf2 {[%clk 0:01:09]}  Rc7 {[%clk 0:01:27]} 25. Rc5 {[%clk 0:01:05]}  Bf8 {[%clk 0:01:25]} 26. Rc3 {[%clk 0:00:59]}  f5 {[%clk 0:01:13]} 27. Rdc1 {[%clk 0:00:52]}  Rac8 {[%clk 0:01:11]} 28. Kf3 {[%clk 0:00:47]}  Bg7 {[%clk 0:01:08]} 29. Rd3 {[%clk 0:00:45]}  Kf7 {[%clk 0:01:07]} 30. Rc5 {[%clk 0:00:44]}  Bf8 {[%clk 0:01:05]} 31. Rc1 {[%clk 0:00:43]}  Ke6 {[%clk 0:01:05]} 32. h3 {[%clk 0:00:41]}  Nc4 {[%clk 0:00:56]} 33. Nxc4 {[%clk 0:00:41]}  dxc4 {[%clk 0:00:57]} 34. Re3+ {[%clk 0:00:41]}  Kf7 {[%clk 0:00:48]} 35. g4 {[%clk 0:00:30]}  Bg7 {[%clk 0:00:47]} 36. Bc3 {[%clk 0:00:27]}  Rd7 {[%clk 0:00:42]} 37. gxf5 {[%clk 0:00:27]}  gxf5 {[%clk 0:00:42]} 38. Rg1 {[%clk 0:00:26]}  Bf6 {[%clk 0:00:35]} 39. Rd1 {[%clk 0:00:07]}  Rcd8 {[%clk 0:00:31]} 40. Re5 {[%clk 0:00:07]}  Bxe5 {[%clk 0:00:30]} 41. fxe5 {[%clk 0:00:08]}  Rg8 {[%clk 0:00:30]} 42. Kf4 {[%clk 0:00:07]}  Ke6 {[%clk 0:00:31]} 43. Kf3 {[%clk 0:00:06]}  Rdg7 {[%clk 0:00:28]} 44. Bd2 {[%clk 0:00:02]}  Rg1 {[%clk 0:00:25]} 45. Be1 {[%clk 0:00:03]}  Rf1+ {[%clk 0:00:24]} 46. Ke3 {[%clk 0:00:02]}  Rgg1 {[%clk 0:00:24]} 47. Kd2 {[%clk 0:00:00]}  c3+ {[%clk 0:00:25]} 0-1

[Event "December 19 Late 2023"]
[Site "https://www.chess.com"]
[Date "2023.12.19"]
[Round "5"]
[White "Dourerassou, Jonathan"]
[Black "Ambartsumova, Karina"]
[Result "1-0"]
[Board "34"]
[TimeControl "180+1"]
[WhiteFideId "628050"]
[BlackFideId "4166299"]
[WhiteElo "2499"]
[BlackElo "2240"]
[WhiteTeam "FRA"]
[BlackTeam "RUS"]
[WhiteClock "0:00:16"]
[BlackClock "0:00:03"]

1. d4 {[%clk 0:03:00]}  Nf6 {[%clk 0:02:59]} 2. Bg5 {[%clk 0:03:00]}  e6 {[%clk 0:02:54]} 3. e4 {[%clk 0:02:59]}  h6 {[%clk 0:02:55]} 4. Bxf6 {[%clk 0:02:58]}  Qxf6 {[%clk 0:02:55]} 5. Nc3 {[%clk 0:02:57]}  b6 {[%clk 0:02:55]} 6. e5 {[%clk 0:02:55]}  Qe7 {[%clk 0:02:55]} 7. Qf3 {[%clk 0:02:55]}  Nc6 {[%clk 0:02:51]} 8. Nb5 {[%clk 0:02:53]}  Qd8 {[%clk 0:02:48]} 9. O-O-O {[%clk 0:02:46]}  Bb7 {[%clk 0:02:41]} 10. Nh3 {[%clk 0:02:30]}  Be7 {[%clk 0:02:39]} 11. Bd3 {[%clk 0:02:27]}  a6 {[%clk 0:02:06]} 12. Nc3 {[%clk 0:02:25]}  b5 {[%clk 0:02:07]} 13. Qg3 {[%clk 0:02:11]}  Kf8 {[%clk 0:02:01]} 14. d5 {[%clk 0:02:10]}  Nb4 {[%clk 0:01:35]} 15. Be4 {[%clk 0:02:09]}  exd5 {[%clk 0:01:19]} 16. Nxd5 {[%clk 0:02:09]}  Nxa2+ {[%clk 0:01:09]} 17. Kb1 {[%clk 0:02:08]}  Nb4 {[%clk 0:01:10]} 18. Nhf4 {[%clk 0:01:57]}  Nxd5 {[%clk 0:01:05]} 19. Nxd5 {[%clk 0:01:56]}  a5 {[%clk 0:00:46]} 20. Rhe1 {[%clk 0:01:54]}  Ra6 {[%clk 0:00:39]} 21. Nf6 {[%clk 0:01:41]}  Bc8 {[%clk 0:00:28]} 22. Nh5 {[%clk 0:01:23]}  g6 {[%clk 0:00:25]} 23. Nf4 {[%clk 0:01:21]}  Kg7 {[%clk 0:00:20]} 24. e6 {[%clk 0:01:17]}  Bg5 {[%clk 0:00:19]} 25. exd7 {[%clk 0:01:10]}  Bxd7 {[%clk 0:00:20]} 26. Nd3 {[%clk 0:01:00]}  Rd6 {[%clk 0:00:19]} 27. Nc5 {[%clk 0:00:53]}  Bc8 {[%clk 0:00:17]} 28. Bf3 {[%clk 0:00:49]}  Re8 {[%clk 0:00:13]} 29. Ne4 {[%clk 0:00:44]}  Rxd1+ {[%clk 0:00:13]} 30. Rxd1 {[%clk 0:00:45]}  Qe7 {[%clk 0:00:13]} 31. Nc3 {[%clk 0:00:38]}  b4 {[%clk 0:00:13]} 32. Nd5 {[%clk 0:00:38]}  Qe5 {[%clk 0:00:14]} 33. Nxc7 {[%clk 0:00:34]}  Qxg3 {[%clk 0:00:13]} 34. Nxe8+ {[%clk 0:00:34]}  Kf8 {[%clk 0:00:13]} 35. hxg3 {[%clk 0:00:35]}  Kxe8 {[%clk 0:00:13]} 36. Rd5 {[%clk 0:00:35]}  Bd8 {[%clk 0:00:12]} 37. Re5+ {[%clk 0:00:33]}  Kd7 {[%clk 0:00:12]} 38. Bg4+ {[%clk 0:00:28]}  Kd6 {[%clk 0:00:10]} 39. Re8 {[%clk 0:00:25]}  Bxg4 {[%clk 0:00:07]} 40. Rxd8+ {[%clk 0:00:24]}  Kc5 {[%clk 0:00:06]} 41. f3 {[%clk 0:00:23]}  Be6 {[%clk 0:00:06]} 42. Kc1 {[%clk 0:00:23]}  h5 {[%clk 0:00:06]} 43. Kd2 {[%clk 0:00:23]}  a4 {[%clk 0:00:05]} 44. Ra8 {[%clk 0:00:22]}  Kb5 {[%clk 0:00:06]} 45. c3 {[%clk 0:00:21]}  bxc3+ {[%clk 0:00:05]} 46. Kxc3 {[%clk 0:00:22]}  Bb3 {[%clk 0:00:05]} 47. Rd8 {[%clk 0:00:22]}  Kc5 {[%clk 0:00:06]} 48. Rd4 {[%clk 0:00:21]}  Kc6 {[%clk 0:00:03]} 49. Rb4 {[%clk 0:00:21]}  Bd1 {[%clk 0:00:03]} 50. Kd4 {[%clk 0:00:20]}  Kd6 {[%clk 0:00:02]} 51. Rb6+ {[%clk 0:00:20]}  Ke7 {[%clk 0:00:03]} 52. Ke5 {[%clk 0:00:19]}  Bb3 {[%clk 0:00:03]} 53. Rb7+ {[%clk 0:00:19]}  Kd8 {[%clk 0:00:02]} 54. Kf6 {[%clk 0:00:20]}  Ke8 {[%clk 0:00:02]} 55. Re7+ {[%clk 0:00:19]}  Kf8 {[%clk 0:00:02]} 56. Re5 {[%clk 0:00:18]}  Kg8 {[%clk 0:00:01]} 57. Re8+ {[%clk 0:00:17]}  Kh7 {[%clk 0:00:02]} 58. Rf8 {[%clk 0:00:17]}  Kh6 {[%clk 0:00:03]} 59. Rh8# {[%clk 0:00:16]} 1-0

[Event "December 19 Late 2023"]
[Site "https://www.chess.com"]
[Date "2023.12.19"]
[Round "5"]
[White "Troff, Kayden"]
[Black "Pulpan, Jakub"]
[Result "0-1"]
[Board "35"]
[TimeControl "180+1"]
[WhiteFideId "2047896"]
[BlackFideId "302759"]
[WhiteElo "2544"]
[BlackElo "2501"]
[WhiteTeam "USA"]
[BlackTeam "CZE"]
[WhiteClock "0:00:18"]
[BlackClock "0:00:10"]

1. d4 {[%clk 0:03:00]}  Nf6 {[%clk 0:02:53]} 2. Nf3 {[%clk 0:03:01]}  d5 {[%clk 0:02:52]} 3. Bf4 {[%clk 0:03:01]}  c5 {[%clk 0:02:48]} 4. e3 {[%clk 0:03:01]}  Nc6 {[%clk 0:02:44]} 5. Nc3 {[%clk 0:03:01]}  Nh5 {[%clk 0:02:22]} 6. Be5 {[%clk 0:02:48]}  f6 {[%clk 0:01:45]} 7. Bg3 {[%clk 0:02:46]}  Nxg3 {[%clk 0:01:42]} 8. hxg3 {[%clk 0:02:47]}  cxd4 {[%clk 0:01:34]} 9. Nxd4 {[%clk 0:02:30]}  e5 {[%clk 0:01:26]} 10. Nb3 {[%clk 0:02:28]}  Be6 {[%clk 0:01:20]} 11. Bd3 {[%clk 0:02:28]}  Qd7 {[%clk 0:01:12]} 12. Bg6+ {[%clk 0:02:09]}  hxg6 {[%clk 0:01:07]} 13. Rxh8 {[%clk 0:02:08]}  O-O-O {[%clk 0:01:08]} 14. Qd2 {[%clk 0:01:55]}  d4 {[%clk 0:01:01]} 15. exd4 {[%clk 0:01:54]}  exd4 {[%clk 0:01:02]} 16. Ne2 {[%clk 0:01:50]}  d3 {[%clk 0:00:23]} 17. Qxd3 {[%clk 0:01:34]}  Bb4+ {[%clk 0:00:20]} 18. Nc3 {[%clk 0:01:25]}  Rxh8 {[%clk 0:00:19]} 19. O-O-O {[%clk 0:01:22]}  Qxd3 {[%clk 0:00:19]} 20. Rxd3 {[%clk 0:01:23]}  Bxb3 {[%clk 0:00:18]} 21. axb3 {[%clk 0:01:22]}  Bxc3 {[%clk 0:00:18]} 22. bxc3 {[%clk 0:01:22]}  Rh2 {[%clk 0:00:17]} 23. Kd1 {[%clk 0:01:19]}  Rxg2 {[%clk 0:00:17]} 24. Ke1 {[%clk 0:01:19]}  Rh2 {[%clk 0:00:17]} 25. b4 {[%clk 0:01:17]}  Rh8 {[%clk 0:00:17]} 26. b5 {[%clk 0:01:16]}  Ne5 {[%clk 0:00:17]} 27. Re3 {[%clk 0:01:16]}  Re8 {[%clk 0:00:14]} 28. Kf1 {[%clk 0:01:16]}  Kd8 {[%clk 0:00:13]} 29. Re4 {[%clk 0:01:16]}  Nd7 {[%clk 0:00:13]} 30. Ra4 {[%clk 0:01:14]}  Re5 {[%clk 0:00:14]} 31. c4 {[%clk 0:01:12]}  Rc5 {[%clk 0:00:14]} 32. Rxa7 {[%clk 0:01:08]}  Rxc4 {[%clk 0:00:14]} 33. Rxb7 {[%clk 0:01:09]}  Rxc2 {[%clk 0:00:15]} 34. Ra7 {[%clk 0:01:10]}  Rb2 {[%clk 0:00:16]} 35. Ra5 {[%clk 0:01:08]}  Kc7 {[%clk 0:00:16]} 36. Ra7+ {[%clk 0:01:07]}  Kd6 {[%clk 0:00:16]} 37. Ra6+ {[%clk 0:01:03]}  Kc7 {[%clk 0:00:16]} 38. Ra7+ {[%clk 0:01:03]}  Kc8 {[%clk 0:00:16]} 39. Ra8+ {[%clk 0:01:02]}  Kb7 {[%clk 0:00:16]} 40. Rg8 {[%clk 0:01:02]}  Rxb5 {[%clk 0:00:15]} 41. Rxg7 {[%clk 0:01:02]}  Kc7 {[%clk 0:00:15]} 42. Rxg6 {[%clk 0:01:03]}  Kd6 {[%clk 0:00:15]} 43. Kg2 {[%clk 0:01:01]}  Ke6 {[%clk 0:00:15]} 44. Rg7 {[%clk 0:01:00]}  Ne5 {[%clk 0:00:14]} 45. Ra7 {[%clk 0:00:59]}  Rb2 {[%clk 0:00:14]} 46. Ra3 {[%clk 0:00:50]}  Kf5 {[%clk 0:00:13]} 47. Re3 {[%clk 0:00:48]}  Ng4 {[%clk 0:00:12]} 48. Rf3+ {[%clk 0:00:48]}  Kg5 {[%clk 0:00:12]} 49. Rf4 {[%clk 0:00:48]}  f5 {[%clk 0:00:13]} 50. Rf3 {[%clk 0:00:46]}  Ne5 {[%clk 0:00:13]} 51. Re3 {[%clk 0:00:42]}  Kf6 {[%clk 0:00:13]} 52. Rc3 {[%clk 0:00:40]}  Ng4 {[%clk 0:00:13]} 53. Rf3 {[%clk 0:00:40]}  Ke5 {[%clk 0:00:13]} 54. Kg1 {[%clk 0:00:39]}  Nf6 {[%clk 0:00:09]} 55. Kg2 {[%clk 0:00:32]}  Nd5 {[%clk 0:00:07]} 56. Kg1 {[%clk 0:00:30]}  Rc2 {[%clk 0:00:07]} 57. Ra3 {[%clk 0:00:28]}  Nc3 {[%clk 0:00:07]} 58. Kg2 {[%clk 0:00:25]}  Ke4 {[%clk 0:00:05]} 59. Ra8 {[%clk 0:00:21]}  Ke5 {[%clk 0:00:02]} 60. Re8+ {[%clk 0:00:21]}  Kf6 {[%clk 0:00:02]} 61. Re3 {[%clk 0:00:21]}  Ne4 {[%clk 0:00:02]} 62. Rf3 {[%clk 0:00:21]}  Ng5 {[%clk 0:00:02]} 63. Rf4 {[%clk 0:00:21]}  Ne6 {[%clk 0:00:02]} 64. Rf3 {[%clk 0:00:22]}  Kg5 {[%clk 0:00:02]} 65. Re3 {[%clk 0:00:21]}  Nd4 {[%clk 0:00:02]} 66. Rd3 {[%clk 0:00:21]}  Nb5 {[%clk 0:00:02]} 67. Kg1 {[%clk 0:00:21]}  Nc7 {[%clk 0:00:02]} 68. Rd6 {[%clk 0:00:21]}  Kg4 {[%clk 0:00:02]} 69. Kg2 {[%clk 0:00:21]}  Kg5 {[%clk 0:00:03]} 70. Rd7 {[%clk 0:00:21]}  Ne6 {[%clk 0:00:03]} 71. Rd6 {[%clk 0:00:21]}  Kf6 {[%clk 0:00:03]} 72. Kg1 {[%clk 0:00:21]}  Ke5 {[%clk 0:00:03]} 73. Rd3 {[%clk 0:00:21]}  Ng5 {[%clk 0:00:04]} 74. Ra3 {[%clk 0:00:20]}  Nh3+ {[%clk 0:00:04]} 75. Kg2 {[%clk 0:00:20]}  Nxf2 {[%clk 0:00:05]} 76. Kf3 {[%clk 0:00:18]}  Ne4 {[%clk 0:00:04]} 77. Ra5+ {[%clk 0:00:19]}  Rc5 {[%clk 0:00:03]} 78. Ra8 {[%clk 0:00:17]}  Rc3+ {[%clk 0:00:03]} 79. Ke2 {[%clk 0:00:18]}  Nxg3+ {[%clk 0:00:02]} 80. Kd2 {[%clk 0:00:18]}  Ne4+ {[%clk 0:00:03]} 81. Ke2 {[%clk 0:00:18]}  Kf4 {[%clk 0:00:04]} 82. Ra4 {[%clk 0:00:18]}  Rc2+ {[%clk 0:00:04]} 83. Kf1 {[%clk 0:00:19]}  Rb2 {[%clk 0:00:04]} 84. Ra3 {[%clk 0:00:20]}  Nd2+ {[%clk 0:00:04]} 85. Ke1 {[%clk 0:00:20]}  Nf3+ {[%clk 0:00:05]} 86. Kd1 {[%clk 0:00:21]}  Ng5 {[%clk 0:00:05]} 87. Kc1 {[%clk 0:00:20]}  Rg2 {[%clk 0:00:05]} 88. Kd1 {[%clk 0:00:21]}  Nf3 {[%clk 0:00:05]} 89. Ra4+ {[%clk 0:00:21]}  Kg3 {[%clk 0:00:06]} 90. Ra8 {[%clk 0:00:22]}  f4 {[%clk 0:00:06]} 91. Rg8+ {[%clk 0:00:21]}  Kf2 {[%clk 0:00:06]} 92. Re8 {[%clk 0:00:21]}  Rg5 {[%clk 0:00:06]} 93. Re2+ {[%clk 0:00:21]}  Kg3 {[%clk 0:00:07]} 94. Ra2 {[%clk 0:00:20]}  Rd5+ {[%clk 0:00:07]} 95. Kc1 {[%clk 0:00:20]}  Rd2 {[%clk 0:00:06]} 96. Ra8 {[%clk 0:00:20]}  Re2 {[%clk 0:00:07]} 97. Rg8+ {[%clk 0:00:21]}  Kf2 {[%clk 0:00:07]} 98. Kd1 {[%clk 0:00:22]}  Rd2+ {[%clk 0:00:07]} 99. Kc1 {[%clk 0:00:22]}  Rd4 {[%clk 0:00:08]} 100. Kc2 {[%clk 0:00:21]}  Ne5 {[%clk 0:00:08]} 101. Kc3 {[%clk 0:00:21]}  Rd3+ {[%clk 0:00:09]} 102. Kc2 {[%clk 0:00:22]}  f3 {[%clk 0:00:09]} 103. Re8 {[%clk 0:00:22]}  Re3 {[%clk 0:00:10]} 104. Kd1 {[%clk 0:00:22]}  Re1+ {[%clk 0:00:09]} 105. Kc2 {[%clk 0:00:22]}  Re2+ {[%clk 0:00:09]} 106. Kd1 {[%clk 0:00:22]}  Kf1 {[%clk 0:00:09]} 107. Rh8 {[%clk 0:00:22]}  Re4 {[%clk 0:00:09]} 108. Kd2 {[%clk 0:00:22]}  f2 {[%clk 0:00:09]} 109. Rg8 {[%clk 0:00:22]}  Rg4 {[%clk 0:00:09]} 110. Rf8 {[%clk 0:00:21]}  Kg2 {[%clk 0:00:09]} 111. Ke3 {[%clk 0:00:21]}  f1=Q {[%clk 0:00:09]} 112. Rxf1 {[%clk 0:00:18]}  Kxf1 {[%clk 0:00:10]} 0-1

[Event "December 19 Late 2023"]
[Site "https://www.chess.com"]
[Date "2023.12.19"]
[Round "5"]
[White "Ferreira, Vitor Hugo Vieira"]
[Black "Seemann, Jakub"]
[Result "0-1"]
[Board "38"]
[TimeControl "180+1"]
[WhiteFideId "2119765"]
[BlackFideId "21874697"]
[WhiteElo "2123"]
[BlackElo "2332"]
[WhiteTeam "BRA"]
[BlackTeam "POL"]
[WhiteClock "0:00:00"]
[BlackClock "0:00:04"]

1. c4 {[%clk 0:03:00]}  Nf6 {[%clk 0:02:59]} 2. g3 {[%clk 0:03:00]}  g6 {[%clk 0:03:00]} 3. Bg2 {[%clk 0:03:01]}  Bg7 {[%clk 0:03:01]} 4. Nc3 {[%clk 0:03:01]}  O-O {[%clk 0:03:01]} 5. d4 {[%clk 0:03:01]}  d6 {[%clk 0:03:01]} 6. h3 {[%clk 0:03:01]}  Nc6 {[%clk 0:03:01]} 7. Nf3 {[%clk 0:02:59]}  e5 {[%clk 0:03:01]} 8. Be3 {[%clk 0:03:00]}  Re8 {[%clk 0:02:57]} 9. dxe5 {[%clk 0:02:58]}  dxe5 {[%clk 0:02:54]} 10. Rc1 {[%clk 0:02:53]}  Be6 {[%clk 0:02:48]} 11. Qxd8 {[%clk 0:02:48]}  Raxd8 {[%clk 0:02:48]} 12. b3 {[%clk 0:02:48]}  h6 {[%clk 0:02:46]} 13. O-O {[%clk 0:02:43]}  a6 {[%clk 0:02:45]} 14. Rfd1 {[%clk 0:02:42]}  Bf8 {[%clk 0:02:39]} 15. Rxd8 {[%clk 0:02:36]}  Rxd8 {[%clk 0:02:40]} 16. Rd1 {[%clk 0:02:37]}  Rxd1+ {[%clk 0:02:36]} 17. Nxd1 {[%clk 0:02:37]}  Bb4 {[%clk 0:02:25]} 18. Bxh6 {[%clk 0:02:30]}  Bf5 {[%clk 0:02:24]} 19. Bd2 {[%clk 0:02:29]}  a5 {[%clk 0:02:12]} 20. Nc3 {[%clk 0:02:13]}  Nd4 {[%clk 0:01:37]} 21. Kf1 {[%clk 0:01:58]}  Nxf3 {[%clk 0:01:36]} 22. exf3 {[%clk 0:01:53]}  Nd7 {[%clk 0:01:32]} 23. Ke2 {[%clk 0:01:42]}  c6 {[%clk 0:01:19]} 24. Ne4 {[%clk 0:01:39]}  Kf8 {[%clk 0:01:05]} 25. Bxb4+ {[%clk 0:01:35]}  axb4 {[%clk 0:01:06]} 26. Nd6 {[%clk 0:01:35]}  Bb1 {[%clk 0:01:05]} 27. Nxb7 {[%clk 0:01:28]}  Bxa2 {[%clk 0:01:00]} 28. Na5 {[%clk 0:01:12]}  c5 {[%clk 0:00:59]} 29. Kd2 {[%clk 0:01:05]}  Bb1 {[%clk 0:00:59]} 30. Bf1 {[%clk 0:00:58]}  Bf5 {[%clk 0:00:57]} 31. g4 {[%clk 0:00:58]}  Be6 {[%clk 0:00:56]} 32. h4 {[%clk 0:00:57]}  e4 {[%clk 0:00:47]} 33. fxe4 {[%clk 0:00:31]}  Bxg4 {[%clk 0:00:47]} 34. f4 {[%clk 0:00:30]}  Ke7 {[%clk 0:00:44]} 35. Ke3 {[%clk 0:00:27]}  Nf8 {[%clk 0:00:40]} 36. Nb7 {[%clk 0:00:25]}  Ne6 {[%clk 0:00:40]} 37. Bg2 {[%clk 0:00:21]}  Bd1 {[%clk 0:00:36]} 38. Na5 {[%clk 0:00:17]}  Nd4 {[%clk 0:00:33]} 39. f5 {[%clk 0:00:08]}  Bxb3 {[%clk 0:00:28]} 40. Nb7 {[%clk 0:00:08]}  Bxc4 {[%clk 0:00:18]} 41. Nxc5 {[%clk 0:00:07]}  b3 {[%clk 0:00:16]} 42. Na4 {[%clk 0:00:05]}  Nb5 {[%clk 0:00:06]} 43. Kd2 {[%clk 0:00:03]}  gxf5 {[%clk 0:00:05]} 44. exf5 {[%clk 0:00:03]}  Kf6 {[%clk 0:00:06]} 45. Bc6 {[%clk 0:00:03]}  Kxf5 {[%clk 0:00:04]} 46. h5 {[%clk 0:00:01]}  Kg5 {[%clk 0:00:04]} 47. Bf3 {[%clk 0:00:00]}  f5 {[%clk 0:00:04]} 0-1